Workbook

Sheet Introduction
B3: Community Solar is the concept of multiple participants sharing in both the costs and the benefits of a single, larger photovoltaic (PV) system rather than each individual (or business) pursuing its own rooftop PV project. There are many reasons why someone would opt to participate in a community solar project. For those who do not own their own home or building or who live in a condo, the option of installing an on-site PV system is limited. In addition, even those who own their own home or building may have a limited solar resource either due to a mature tree canopy shading the roof or a sub-optimal roof orientation. Others may not want an on-site PV system given future building expansion plans, aesthetic concerns or certain HOA restrictions. And finally, there is the cost issue. While the cost of PV has dropped dramatically in the past two to three years, it can still be a relatively expensive undertaking in many parts of the country. Given that there are economies of scale related to the cost of installing an on-site PV system, purchasing a very small system, say ½ kilowatt (kW) for example, for on-site use might not be practical. However, within the context of a community solar project, participants can get involved by purchasing the output from as little as one solar panel. Given the expanded access that community solar offers, there have been a number of utilities across the country that have begun to offer community solar programs. To build on this momentum, the National Renewable Energy Laboratory (NREL) has developed this basic analysis tool to allow community solar stakeholders to conduct scenario planning as it relates to certain ownership structures and payment models for community solar. The intended audience is smaller utilities considering community solar for the first time as well as others in the community who want to partner with their local utility to develop a program. Have the utility involved in the scenario planning is important given that the tool makes multiple assumptions related to utility costs that can be best confirmed by the utility itself. There are a number of possible variations as to how to structure a community solar project. For purposes of this tool, two primary structures were chosen. 1. A utility will purchase and install a PV system and develop a community solar program around the output of this system. Subscribers would either have the option of making a one time, upfront payment to join the program and in return, be entitled to the output of their share of the facility’s production. Alternatively, programs can be structured with monthly, pay as you go, subscription fees, in return for a corresponding share of the facility’s production. 2. Rather than directly acquire a PV system, a utility will enter into a Power Purchase Agreement (PPA) with a solar developer and purchase the output from a solar facility. In turn, the utility can then develop a community solar program around this purchased solar electricity. As with option #1, subscribers can either make an upfront payment or make monthly payments. The tool documentation is included as cell comments. Every input and output cell has a detailed comment explaining each tool input and output value. The general tool concepts are included here on the Introduction tab. * Please note that this tool is still considered to be a beta version, and thus not a finished product. It is being released in it's current format in order to solicit feedback from the community solar user community. This feedback will inform the direction for further development of the tool.

Sheet Inputs
B2: Project Information [Update solar resource information changed] | E2: System Location Data [Update solar resource information if changed]
B3: System Size [kW-DC] | C3: 400 | E3: City | F3: Orlando
B4: Project Lifetime [yrs] | C4: 25 | E4: State | F4: FL
B5: Number of Shares | C5: 400 | E5: Residential Electric Rate [$/kWh] | F5: 0.11
B6: LCOE or PPA Price [$/kWh] | C6: 0.18 | E6: Escalation Rate [%] | F6: 0.0154
B7: Installed Cost [$/kW] | C7: 4000
B8: Annual O&M Costs [$/kW] | C8: 15 | E8: Subscriber Rebates & Credit Options
E9: Bill Credit Rate [$/kWh] | F9: 0.05
B10: Utility Costs & Incentives | E10: Up-Front Rebate [$/W] | F10: 0
B11: Administration [$/yr] | C11: 0 | E11: Discount Rate [%] | F11: 0.1
B13: PV System Information [Update solar resource information if changed]
B14: System Tilt Angle [Degrees] | C14: 20
B15: System Derate Factor [%] | C15: 0.8
B16: Annual Panel Degradation [%] | C16: 0.005
B18: Cell Color Key | E18: Tax-Exempt Entity?
B19: User Input
B20: Calculated Cell
B21: Label
B22: Data Cell

Sheet Outputs
B2: Subscriber Perspective | L2: Present Value of Total Costs [$]
C3: Average Monthly Charge/Share | D3: Average Monthly Bill Credit | E3: Net Average Monthly Cost | F3: Average Monthly kWh per Share | G3: Effective Average Cost per kWh | H3: Average Yearly Bill Credit | I3: Total Project Lifetime Bill Credits | J3: Total Program Costs | K3: Upfront Payment Option | L3: Estimate of the cost of Retail Electricity | M3: =Data!$AD$32 -> 1425.648684
B4: No Bill Credits [$] | C4: ='Capacity-Based Model'!C30 -> 18.70006036 | D4: 0 | E4: ='Capacity-Based Model'!D30 -> 18.70006036 | F4: =Data!AF12 -> 103.8892242 | G4: ='Capacity-Based Model'!E30 -> 0.18 | H4: 0 | I4: 0 | J4: ='Capacity-Based Model'!$H$30 -> 2078.151028 | K4: ='Capacity-Based Model'!$I$30 -> 2078.151028 | L4: Cost of Solar (No Bill Credit) | M4: =Data!$AD$28 -> 2078.151028
B5: Bill Credit Rate [$] | D5: ='Capacity-Based Model'!C31 -> 5.19446121 | E5: ='Capacity-Based Model'!D31 -> 13.50559915 | G5: ='Capacity-Based Model'!E31 -> 0.13 | H5: ='Capacity-Based Model'!F31 -> 62.33353452 | I5: ='Capacity-Based Model'!G31 -> 565.8039873 | J5: ='Capacity-Based Model'!H31 -> 1500.886853 | K5: ='Capacity-Based Model'!I31 -> 0 | L5: Cost of Solar (Bill Credit) | M5: =Data!$AD$30 -> 1500.886853
B6: Energy Credit [kWh] | D6: ='Capacity-Based Model'!C32 -> 103.8892242 | H6: =Data!$AE$12 -> 1246.67069 | I6: ='Capacity-Based Model'!G32 -> 31166.76726
B8: Utility Perspective
C9: Average Annual Cost of Production | D9: Total Cost of Production [$/kWh] | E9: Monthly Cost to Utility per Share | F9: Monthly Charge to Subscriber per Share | G9: Net Monthly Cost of Production per Share | H9: Net Average Cost of Community Solar [$/kWh] | I9: Average Annual Cost to the Utility to offer Program
B10: Program Costs [$] | C10: ='Capacity-Based Model'!$C$18 -> 89760.28971 | D10: ='Capacity-Based Model'!$C$14 -> 0.18 | E10: ='Capacity-Based Model'!$C$21 -> 18.70006036 | F10: ='Capacity-Based Model'!$C$25 -> 18.70006036
B11: No Bill Credits [$]
B12: Bill Credit Rate [$] | F12: ='Capacity-Based Model'!$D$25 -> 13.50559915 | G12: =$E$10-F12 -> 5.19446121 | H12: =G12/Data!AF12 -> 0.05 | I12: =$G$12*12*Inputs!$C$3 -> 24933.41381
B32: The Effective Cost of Solar Electricity graph illustrates the cost of electricity to the subscriber over the lifetime of the community solar program. The blue line is the projected retail cost to purchase electricity from the utility over time. The initial retail rate and escalation rate are taken from the Inputs tab. The red line is the cost of electricity purchased under the community solar program, assuming no bill credits are offered. The green line is the cost of electricity purchased under the community solar program in which bill credits are offered. This graph is illustrates the points (if they exist) at which the cost of electricity from the community solar program becomes less expensive than grid electricity. | H32: The Estimated Average Monthly Generation per Share graph is included to illustrate the monthy fluctuations in generation. The monthly averages are calculated based on the average monthly generation over the lifetime of the For simplicity sake, the tool uses average annual generation rather than monthly generation.

Sheet Capacity-Based Model
B2: System Information
B3: Number of Shares | C3: =Inputs!C5 -> 400 | D3: <-- From Inputs tab
B4: Project Lifetime [yrs] | C4: =Inputs!C4 -> 25 | D4: <-- From Inputs tab
B5: Subscriber Discount Rate | C5: =Inputs!F11 -> 0.1 | D5: <-- From Inputs tab
B6: System Size [kW] | C6: =Inputs!C3 -> 400 | D6: <-- From Inputs tab
B7: First Year Generation [kWh/kW] | C7: =Data!D8 -> 1326.344639 | D7: <-- From Inputs tab
B8: Average Annual Generation [kWh] | C8: =Data!AC24 -> 498668.2762 | D8: <-- From Data tab, cell AC32
B10: Utility Perspective
B11: Costs per kWh
B12: Real LCOE or PPA Price [$/kWh] | C12: =Inputs!C6 -> 0.18 | D12: <-- From Inputs tab
B13: Administrative Costs [$/kWh] | C13: =Inputs!C11/Data!$AC$24 -> 0 | D13: <-- Annual Administrative Costs [$] ÷ System Lifetime Average Annual Generation [kWh]
B14: TOTAL COSTS [$/kWh] | C14: =C12+C13 -> 0.18 | D14: <-- Sum of previous two cells
B15: Annual Costs
B16: Average Annual Cost of Production [$] | C16: =C8*C12 -> 89760.28971 | D16: <-- System Lifetime Average Annual Generation [kWh] * LCOE/PPA Price [$/kWh]
B17: Administrative Costs [$] | C17: =Data!P4*'Capacity-Based Model'!C13 -> 0 | D17: <-- System Lifetime Average Annual Generation [kWh] * Annual Administrative Costs [$/kWh]
B18: TOTAL COSTS [$] | C18: =C16+C17 -> 89760.28971 | D18: <-- Sum of previous two cells
B19: Cost per Share
B20: Average Annual Cost per Share [$] | C20: =C18/C3 -> 224.4007243 | D20: <-- TOTAL COSTS [$] ÷ Number of Shares
B21: Average Monthly Cost per Share [$] | C21: =C20/12 -> 18.70006036 | D21: <-- Average Annual Cost per Share [$/Share] ÷ 12 months
B23: Utility Charges per Share | C23: No Credit | D23: Net Charge @ Bill Credit Rate | E23: Comments for [No Credit] cell | I23: Comments for [Net Charge @ Bill Credit Rate] cell
B24: Average Annual Charge per Share [$] | C24: =C18/C3 -> 224.4007243 | D24: =IF(Inputs!F9*Data!AE12 < C24, C24 - (Inputs!F9*Data!AE12), 0) -> 162.0671898 | E24: <-- TOTAL COSTS [$] ÷ Number of Shares | I24: <-- IF(Average Monthly Generation per Share [kWh] * Bill Credit [$/kWh] is < Average Annual Charge per Share (AACPS), then cell = AACPS - Bill Credit [$/kWh])
B25: Monthly Average Charge per Share [$] | C25: =C24/12 -> 18.70006036 | D25: =D24/12 -> 13.50559915 | E25: <-- Average Annual Cost per Share [$/Share] ÷ 12 months | I25: <-- Average Annual Cost per Share [$/Share] (Bill Credit) ÷ 12 Months
B26: Average Monthy Charge per Share [$/kWh] | C26: =C25/Data!AF12 -> 0.18 | D26: =D25/Data!$AF$12 -> 0.13 | E26: <-- Average Monthly Charge per Share [$] ÷ Average Monthly Generation [kWh] | I26: <-- Average Monthly Charge per Share [$] (Bill Credit) ÷ Average Monthly Generation [kWh]
B28: Share Perspective
C29: Average Monthly Bill Credit | D29: Net Average Monthly Cost | E29: Effective Average Cost per kWh | F29: Average Yearly Bill Credit | G29: Total Project Lifetime Bill Credits | H29: Total Program Costs | I29: Upfront Payment Option
B30: No Bill Credit | C30: =C25 -> 18.70006036 | D30: =C25 -> 18.70006036 | E30: =D30/$C$32 -> 0.18 | F30: 0 | G30: 0 | H30: =IF(Data!AD28 > 0,Data!AD28,0) -> 2078.151028 | I30: =IF(H30-(1000*Inputs!$F$10*$C$6/$C$3) > 0, H30-(1000*Inputs!$F$10*$C$6/$C$3), 0) -> 2078.151028
B31: Bill Credit Rate [$] | C31: =Data!$AF$12*Inputs!F9 -> 5.19446121 | D31: =IF(C31>$C$25,0,$C$25-C31) -> 13.50559915 | E31: =D31/$C$32 -> 0.13 | F31: =($C$8/$C$3)*Inputs!F9 -> 62.33353452 | G31: =ABS(PV($C$5,$C$4,F31)) -> 565.8039873 | H31: =IF(Data!AD30 > 0,Data!AD30,0) -> 1500.886853
B32: Average Energy Credit [kWh] | C32: =Data!AF12 -> 103.8892242 | F32: =Data!$AE$12 -> 1246.67069 | G32: =F32*Inputs!C4 -> 31166.76726

Sheet Data
B2: Monthly Generation [AC kWh] - PVWatts 400 kW System - Orlando, FL
B3: Year 1 | C3: Values for First Year | D3: Jan | E3: Feb | F3: Mar | G3: Apr | H3: May | I3: Jun | J3: Jul | K3: Aug | L3: Sep | M3: Oct | N3: Nov | O3: Dec | P3: Year
C4: AC Production [kWh] | D4: 43276.92578 | E4: 40063.5625 | F4: 43504.61328 | G4: 44809.86328 | H4: 54533.67578 | I4: 45491.31641 | J4: 48352.52734 | K4: 45823.15625 | L4: 45305.74609 | M4: 40762.24609 | N4: 42741.72266 | O4: 35872.5 | P4: =SUM(D4:O4) -> 530537.8555
C5: Avg Monthly kWh/kW | D5: =D4/Inputs!$C$3 -> 108.1923145 | E5: =E4/Inputs!$C$3 -> 100.1589063 | F5: =F4/Inputs!$C$3 -> 108.7615332 | G5: =G4/Inputs!$C$3 -> 112.0246582 | H5: =H4/Inputs!$C$3 -> 136.3341895 | I5: =I4/Inputs!$C$3 -> 113.728291 | J5: =J4/Inputs!$C$3 -> 120.8813184 | K5: =K4/Inputs!$C$3 -> 114.5578906 | L5: =L4/Inputs!$C$3 -> 113.2643652 | M5: =M4/Inputs!$C$3 -> 101.9056152 | N5: =N4/Inputs!$C$3 -> 106.8543066 | O5: =O4/Inputs!$C$3 -> 89.68125 | P5: =AVERAGE(D5:O5) -> 110.5287199
C6: Ave Monthly kWh/Share | D6: =D4/Inputs!$C$5 -> 108.1923145 | E6: =E4/Inputs!$C$5 -> 100.1589063 | F6: =F4/Inputs!$C$5 -> 108.7615332 | G6: =G4/Inputs!$C$5 -> 112.0246582 | H6: =H4/Inputs!$C$5 -> 136.3341895 | I6: =I4/Inputs!$C$5 -> 113.728291 | J6: =J4/Inputs!$C$5 -> 120.8813184 | K6: =K4/Inputs!$C$5 -> 114.5578906 | L6: =L4/Inputs!$C$5 -> 113.2643652 | M6: =M4/Inputs!$C$5 -> 101.9056152 | N6: =N4/Inputs!$C$5 -> 106.8543066 | O6: =O4/Inputs!$C$5 -> 89.68125 | P6: =AVERAGE(D6:O6) -> 110.5287199
C7: Average Generation/Share | P7: =AVERAGE(D6:O6) -> 110.5287199
C8: Average Annual Generation | D8: =P4/Inputs!$C$3 -> 1326.344639
B10: Estimated Production using Panel Degradation [kWh]
C11: kWh | D11: Year 1 | E11: Year 2 | F11: Year 3 | G11: Year 4 | H11: Year 5 | I11: Year 6 | J11: Year 7 | K11: Year 8 | L11: Year 9 | M11: Year 10 | N11: Year 11 | O11: Year 12 | P11: Year 13 | Q11: Year 14 | R11: Year 15 | S11: Year 16 | T11: Year 17 | U11: Year 18 | V11: Year 19 | W11: Year 20 | X11: Year 21 | Y11: Year 22 | Z11: Year 23 | AA11: Year 24 | AB11: Year 25 | AC11: Monthly Lifetime Average | AD11: Lifetime Avg/Share | AE11: Annual Lifetime Avg/Share | AF11: Avg Monthly/Share
B12: Jan | C12: =D4 -> 43276.92578 | D12: =C12*(1-Inputs!$C$16) -> 43060.54115 | E12: =D12*(1-Inputs!$C$16) -> 42845.23845 | F12: =E12*(1-Inputs!$C$16) -> 42631.01225 | G12: =F12*(1-Inputs!$C$16) -> 42417.85719 | H12: =G12*(1-Inputs!$C$16) -> 42205.76791 | I12: =H12*(1-Inputs!$C$16) -> 41994.73907 | J12: =I12*(1-Inputs!$C$16) -> 41784.76537 | K12: =J12*(1-Inputs!$C$16) -> 41575.84155 | L12: =K12*(1-Inputs!$C$16) -> 41367.96234 | M12: =L12*(1-Inputs!$C$16) -> 41161.12253 | N12: =M12*(1-Inputs!$C$16) -> 40955.31691 | O12: =N12*(1-Inputs!$C$16) -> 40750.54033 | P12: =O12*(1-Inputs!$C$16) -> 40546.78763 | Q12: =P12*(1-Inputs!$C$16) -> 40344.05369 | R12: =Q12*(1-Inputs!$C$16) -> 40142.33342 | S12: =R12*(1-Inputs!$C$16) -> 39941.62175 | T12: =S12*(1-Inputs!$C$16) -> 39741.91364 | U12: =T12*(1-Inputs!$C$16) -> 39543.20408 | V12: =U12*(1-Inputs!$C$16) -> 39345.48806 | W12: =V12*(1-Inputs!$C$16) -> 39148.76062 | X12: =W12*(1-Inputs!$C$16) -> 38953.01681 | Y12: =X12*(1-Inputs!$C$16) -> 38758.25173 | Z12: =Y12*(1-Inputs!$C$16) -> 38564.46047 | AA12: =Z12*(1-Inputs!$C$16) -> 38371.63817 | AB12: =AA12*(1-Inputs!$C$16) -> 38179.77998 | AC12: =AVERAGE(C12:OFFSET(C12,0,Inputs!$C$4)) -> 40677.26696 | AD12: =AC12/Inputs!$C$5 -> 101.6931674 | AE12: =SUM(AC12:AC23)/Inputs!C5 -> 1246.67069 | AF12: =AVERAGE($AC$12:$AC$23)/Inputs!$C$5 -> 103.8892242
B13: Feb | C13: =E4 -> 40063.5625 | D13: =C13*(1-Inputs!$C$16) -> 39863.24469 | E13: =D13*(1-Inputs!$C$16) -> 39663.92846 | F13: =E13*(1-Inputs!$C$16) -> 39465.60882 | G13: =F13*(1-Inputs!$C$16) -> 39268.28078 | H13: =G13*(1-Inputs!$C$16) -> 39071.93937 | I13: =H13*(1-Inputs!$C$16) -> 38876.57968 | J13: =I13*(1-Inputs!$C$16) -> 38682.19678 | K13: =J13*(1-Inputs!$C$16) -> 38488.78579 | L13: =K13*(1-Inputs!$C$16) -> 38296.34187 | M13: =L13*(1-Inputs!$C$16) -> 38104.86016 | N13: =M13*(1-Inputs!$C$16) -> 37914.33586 | O13: =N13*(1-Inputs!$C$16) -> 37724.76418 | P13: =O13*(1-Inputs!$C$16) -> 37536.14036 | Q13: =P13*(1-Inputs!$C$16) -> 37348.45965 | R13: =Q13*(1-Inputs!$C$16) -> 37161.71736 | S13: =R13*(1-Inputs!$C$16) -> 36975.90877 | T13: =S13*(1-Inputs!$C$16) -> 36791.02922 | U13: =T13*(1-Inputs!$C$16) -> 36607.07408 | V13: =U13*(1-Inputs!$C$16) -> 36424.03871 | W13: =V13*(1-Inputs!$C$16) -> 36241.91851 | X13: =W13*(1-Inputs!$C$16) -> 36060.70892 | Y13: =X13*(1-Inputs!$C$16) -> 35880.40538 | Z13: =Y13*(1-Inputs!$C$16) -> 35701.00335 | AA13: =Z13*(1-Inputs!$C$16) -> 35522.49833 | AB13: =AA13*(1-Inputs!$C$16) -> 35344.88584 | AC13: =AVERAGE(C13:OFFSET(C13,0,Inputs!$C$4)) -> 37656.93144 | AD13: =AC13/Inputs!$C$5 -> 94.1423286 | AF13: =AVERAGE($AC$12:$AC$23)/Inputs!$C$5 -> 103.8892242
B14: Mar | C14: =F4 -> 43504.61328 | D14: =C14*(1-Inputs!$C$16) -> 43287.09021 | E14: =D14*(1-Inputs!$C$16) -> 43070.65476 | F14: =E14*(1-Inputs!$C$16) -> 42855.30149 | G14: =F14*(1-Inputs!$C$16) -> 42641.02498 | H14: =G14*(1-Inputs!$C$16) -> 42427.81986 | I14: =H14*(1-Inputs!$C$16) -> 42215.68076 | J14: =I14*(1-Inputs!$C$16) -> 42004.60235 | K14: =J14*(1-Inputs!$C$16) -> 41794.57934 | L14: =K14*(1-Inputs!$C$16) -> 41585.60645 | M14: =L14*(1-Inputs!$C$16) -> 41377.67841 | N14: =M14*(1-Inputs!$C$16) -> 41170.79002 | O14: =N14*(1-Inputs!$C$16) -> 40964.93607 | P14: =O14*(1-Inputs!$C$16) -> 40760.11139 | Q14: =P14*(1-Inputs!$C$16) -> 40556.31083 | R14: =Q14*(1-Inputs!$C$16) -> 40353.52928 | S14: =R14*(1-Inputs!$C$16) -> 40151.76163 | T14: =S14*(1-Inputs!$C$16) -> 39951.00283 | U14: =T14*(1-Inputs!$C$16) -> 39751.24781 | V14: =U14*(1-Inputs!$C$16) -> 39552.49157 | W14: =V14*(1-Inputs!$C$16) -> 39354.72911 | X14: =W14*(1-Inputs!$C$16) -> 39157.95547 | Y14: =X14*(1-Inputs!$C$16) -> 38962.16569 | Z14: =Y14*(1-Inputs!$C$16) -> 38767.35486 | AA14: =Z14*(1-Inputs!$C$16) -> 38573.51809 | AB14: =AA14*(1-Inputs!$C$16) -> 38380.6505 | AC14: =AVERAGE(C14:OFFSET(C14,0,Inputs!$C$4)) -> 40891.2772 | AD14: =AC14/Inputs!$C$5 -> 102.228193 | AF14: =AVERAGE($AC$12:$AC$23)/Inputs!$C$5 -> 103.8892242
B15: Apr | C15: =G4 -> 44809.86328 | D15: =C15*(1-Inputs!$C$16) -> 44585.81396 | E15: =D15*(1-Inputs!$C$16) -> 44362.8849 | F15: =E15*(1-Inputs!$C$16) -> 44141.07047 | G15: =F15*(1-Inputs!$C$16) -> 43920.36512 | H15: =G15*(1-Inputs!$C$16) -> 43700.76329 | I15: =H15*(1-Inputs!$C$16) -> 43482.25948 | J15: =I15*(1-Inputs!$C$16) -> 43264.84818 | K15: =J15*(1-Inputs!$C$16) -> 43048.52394 | L15: =K15*(1-Inputs!$C$16) -> 42833.28132 | M15: =L15*(1-Inputs!$C$16) -> 42619.11491 | N15: =M15*(1-Inputs!$C$16) -> 42406.01934 | O15: =N15*(1-Inputs!$C$16) -> 42193.98924 | P15: =O15*(1-Inputs!$C$16) -> 41983.01929 | Q15: =P15*(1-Inputs!$C$16) -> 41773.1042 | R15: =Q15*(1-Inputs!$C$16) -> 41564.23868 | S15: =R15*(1-Inputs!$C$16) -> 41356.41748 | T15: =S15*(1-Inputs!$C$16) -> 41149.6354 | U15: =T15*(1-Inputs!$C$16) -> 40943.88722 | V15: =U15*(1-Inputs!$C$16) -> 40739.16778 | W15: =V15*(1-Inputs!$C$16) -> 40535.47194 | X15: =W15*(1-Inputs!$C$16) -> 40332.79458 | Y15: =X15*(1-Inputs!$C$16) -> 40131.13061 | Z15: =Y15*(1-Inputs!$C$16) -> 39930.47496 | AA15: =Z15*(1-Inputs!$C$16) -> 39730.82258 | AB15: =AA15*(1-Inputs!$C$16) -> 39532.16847 | AC15: =AVERAGE(C15:OFFSET(C15,0,Inputs!$C$4)) -> 42118.12041 | AD15: =AC15/Inputs!$C$5 -> 105.295301 | AF15: =AVERAGE($AC$12:$AC$23)/Inputs!$C$5 -> 103.8892242
B16: May | C16: =H4 -> 54533.67578 | D16: =C16*(1-Inputs!$C$16) -> 54261.0074 | E16: =D16*(1-Inputs!$C$16) -> 53989.70237 | F16: =E16*(1-Inputs!$C$16) -> 53719.75385 | G16: =F16*(1-Inputs!$C$16) -> 53451.15508 | H16: =G16*(1-Inputs!$C$16) -> 53183.89931 | I16: =H16*(1-Inputs!$C$16) -> 52917.97981 | J16: =I16*(1-Inputs!$C$16) -> 52653.38991 | K16: =J16*(1-Inputs!$C$16) -> 52390.12296 | L16: =K16*(1-Inputs!$C$16) -> 52128.17235 | M16: =L16*(1-Inputs!$C$16) -> 51867.53149 | N16: =M16*(1-Inputs!$C$16) -> 51608.19383 | O16: =N16*(1-Inputs!$C$16) -> 51350.15286 | P16: =O16*(1-Inputs!$C$16) -> 51093.4021 | Q16: =P16*(1-Inputs!$C$16) -> 50837.93509 | R16: =Q16*(1-Inputs!$C$16) -> 50583.74541 | S16: =R16*(1-Inputs!$C$16) -> 50330.82668 | T16: =S16*(1-Inputs!$C$16) -> 50079.17255 | U16: =T16*(1-Inputs!$C$16) -> 49828.77669 | V16: =U16*(1-Inputs!$C$16) -> 49579.6328 | W16: =V16*(1-Inputs!$C$16) -> 49331.73464 | X16: =W16*(1-Inputs!$C$16) -> 49085.07597 | Y16: =X16*(1-Inputs!$C$16) -> 48839.65059 | Z16: =Y16*(1-Inputs!$C$16) -> 48595.45233 | AA16: =Z16*(1-Inputs!$C$16) -> 48352.47507 | AB16: =AA16*(1-Inputs!$C$16) -> 48110.7127 | AC16: =AVERAGE(C16:OFFSET(C16,0,Inputs!$C$4)) -> 51257.82037 | AD16: =AC16/Inputs!$C$5 -> 128.1445509 | AF16: =AVERAGE($AC$12:$AC$23)/Inputs!$C$5 -> 103.8892242
B17: Jun | C17: =I4 -> 45491.31641 | D17: =C17*(1-Inputs!$C$16) -> 45263.85982 | E17: =D17*(1-Inputs!$C$16) -> 45037.54053 | F17: =E17*(1-Inputs!$C$16) -> 44812.35282 | G17: =F17*(1-Inputs!$C$16) -> 44588.29106 | H17: =G17*(1-Inputs!$C$16) -> 44365.3496 | I17: =H17*(1-Inputs!$C$16) -> 44143.52286 | J17: =I17*(1-Inputs!$C$16) -> 43922.80524 | K17: =J17*(1-Inputs!$C$16) -> 43703.19121 | L17: =K17*(1-Inputs!$C$16) -> 43484.67526 | M17: =L17*(1-Inputs!$C$16) -> 43267.25188 | N17: =M17*(1-Inputs!$C$16) -> 43050.91562 | O17: =N17*(1-Inputs!$C$16) -> 42835.66104 | P17: =O17*(1-Inputs!$C$16) -> 42621.48274 | Q17: =P17*(1-Inputs!$C$16) -> 42408.37533 | R17: =Q17*(1-Inputs!$C$16) -> 42196.33345 | S17: =R17*(1-Inputs!$C$16) -> 41985.35178 | T17: =S17*(1-Inputs!$C$16) -> 41775.42502 | U17: =T17*(1-Inputs!$C$16) -> 41566.5479 | V17: =U17*(1-Inputs!$C$16) -> 41358.71516 | W17: =V17*(1-Inputs!$C$16) -> 41151.92158 | X17: =W17*(1-Inputs!$C$16) -> 40946.16197 | Y17: =X17*(1-Inputs!$C$16) -> 40741.43116 | Z17: =Y17*(1-Inputs!$C$16) -> 40537.72401 | AA17: =Z17*(1-Inputs!$C$16) -> 40335.03539 | AB17: =AA17*(1-Inputs!$C$16) -> 40133.36021 | AC17: =AVERAGE(C17:OFFSET(C17,0,Inputs!$C$4)) -> 42758.63843 | AD17: =AC17/Inputs!$C$5 -> 106.8965961 | AF17: =AVERAGE($AC$12:$AC$23)/Inputs!$C$5 -> 103.8892242
B18: Jul | C18: =J4 -> 48352.52734 | D18: =C18*(1-Inputs!$C$16) -> 48110.76471 | E18: =D18*(1-Inputs!$C$16) -> 47870.21088 | F18: =E18*(1-Inputs!$C$16) -> 47630.85983 | G18: =F18*(1-Inputs!$C$16) -> 47392.70553 | H18: =G18*(1-Inputs!$C$16) -> 47155.742 | I18: =H18*(1-Inputs!$C$16) -> 46919.96329 | J18: =I18*(1-Inputs!$C$16) -> 46685.36348 | K18: =J18*(1-Inputs!$C$16) -> 46451.93666 | L18: =K18*(1-Inputs!$C$16) -> 46219.67698 | M18: =L18*(1-Inputs!$C$16) -> 45988.57859 | N18: =M18*(1-Inputs!$C$16) -> 45758.6357 | O18: =N18*(1-Inputs!$C$16) -> 45529.84252 | P18: =O18*(1-Inputs!$C$16) -> 45302.19331 | Q18: =P18*(1-Inputs!$C$16) -> 45075.68234 | R18: =Q18*(1-Inputs!$C$16) -> 44850.30393 | S18: =R18*(1-Inputs!$C$16) -> 44626.05241 | T18: =S18*(1-Inputs!$C$16) -> 44402.92215 | U18: =T18*(1-Inputs!$C$16) -> 44180.90754 | V18: =U18*(1-Inputs!$C$16) -> 43960.003 | W18: =V18*(1-Inputs!$C$16) -> 43740.20298 | X18: =W18*(1-Inputs!$C$16) -> 43521.50197 | Y18: =X18*(1-Inputs!$C$16) -> 43303.89446 | Z18: =Y18*(1-Inputs!$C$16) -> 43087.37499 | AA18: =Z18*(1-Inputs!$C$16) -> 42871.93811 | AB18: =AA18*(1-Inputs!$C$16) -> 42657.57842 | AC18: =AVERAGE(C18:OFFSET(C18,0,Inputs!$C$4)) -> 45447.9755 | AD18: =AC18/Inputs!$C$5 -> 113.6199388 | AF18: =AVERAGE($AC$12:$AC$23)/Inputs!$C$5 -> 103.8892242
B19: Aug | C19: =K4 -> 45823.15625 | D19: =C19*(1-Inputs!$C$16) -> 45594.04047 | E19: =D19*(1-Inputs!$C$16) -> 45366.07027 | F19: =E19*(1-Inputs!$C$16) -> 45139.23992 | G19: =F19*(1-Inputs!$C$16) -> 44913.54372 | H19: =G19*(1-Inputs!$C$16) -> 44688.976 | I19: =H19*(1-Inputs!$C$16) -> 44465.53112 | J19: =I19*(1-Inputs!$C$16) -> 44243.20346 | K19: =J19*(1-Inputs!$C$16) -> 44021.98744 | L19: =K19*(1-Inputs!$C$16) -> 43801.87751 | M19: =L19*(1-Inputs!$C$16) -> 43582.86812 | N19: =M19*(1-Inputs!$C$16) -> 43364.95378 | O19: =N19*(1-Inputs!$C$16) -> 43148.12901 | P19: =O19*(1-Inputs!$C$16) -> 42932.38836 | Q19: =P19*(1-Inputs!$C$16) -> 42717.72642 | R19: =Q19*(1-Inputs!$C$16) -> 42504.13779 | S19: =R19*(1-Inputs!$C$16) -> 42291.6171 | T19: =S19*(1-Inputs!$C$16) -> 42080.15902 | U19: =T19*(1-Inputs!$C$16) -> 41869.75822 | V19: =U19*(1-Inputs!$C$16) -> 41660.40943 | W19: =V19*(1-Inputs!$C$16) -> 41452.10738 | X19: =W19*(1-Inputs!$C$16) -> 41244.84685 | Y19: =X19*(1-Inputs!$C$16) -> 41038.62261 | Z19: =Y19*(1-Inputs!$C$16) -> 40833.4295 | AA19: =Z19*(1-Inputs!$C$16) -> 40629.26235 | AB19: =AA19*(1-Inputs!$C$16) -> 40426.11604 | AC19: =AVERAGE(C19:OFFSET(C19,0,Inputs!$C$4)) -> 43070.54454 | AD19: =AC19/Inputs!$C$5 -> 107.6763614 | AF19: =AVERAGE($AC$12:$AC$23)/Inputs!$C$5 -> 103.8892242
B20: Sep | C20: =L4 -> 45305.74609 | D20: =C20*(1-Inputs!$C$16) -> 45079.21736 | E20: =D20*(1-Inputs!$C$16) -> 44853.82128 | F20: =E20*(1-Inputs!$C$16) -> 44629.55217 | G20: =F20*(1-Inputs!$C$16) -> 44406.40441 | H20: =G20*(1-Inputs!$C$16) -> 44184.37239 | I20: =H20*(1-Inputs!$C$16) -> 43963.45053 | J20: =I20*(1-Inputs!$C$16) -> 43743.63327 | K20: =J20*(1-Inputs!$C$16) -> 43524.91511 | L20: =K20*(1-Inputs!$C$16) -> 43307.29053 | M20: =L20*(1-Inputs!$C$16) -> 43090.75408 | N20: =M20*(1-Inputs!$C$16) -> 42875.30031 | O20: =N20*(1-Inputs!$C$16) -> 42660.92381 | P20: =O20*(1-Inputs!$C$16) -> 42447.61919 | Q20: =P20*(1-Inputs!$C$16) -> 42235.38109 | R20: =Q20*(1-Inputs!$C$16) -> 42024.20419 | S20: =R20*(1-Inputs!$C$16) -> 41814.08316 | T20: =S20*(1-Inputs!$C$16) -> 41605.01275 | U20: =T20*(1-Inputs!$C$16) -> 41396.98769 | V20: =U20*(1-Inputs!$C$16) -> 41190.00275 | W20: =V20*(1-Inputs!$C$16) -> 40984.05273 | X20: =W20*(1-Inputs!$C$16) -> 40779.13247 | Y20: =X20*(1-Inputs!$C$16) -> 40575.23681 | Z20: =Y20*(1-Inputs!$C$16) -> 40372.36062 | AA20: =Z20*(1-Inputs!$C$16) -> 40170.49882 | AB20: =AA20*(1-Inputs!$C$16) -> 39969.64633 | AC20: =AVERAGE(C20:OFFSET(C20,0,Inputs!$C$4)) -> 42584.21538 | AD20: =AC20/Inputs!$C$5 -> 106.4605385 | AF20: =AVERAGE($AC$12:$AC$23)/Inputs!$C$5 -> 103.8892242
B21: Oct | C21: =M4 -> 40762.24609 | D21: =C21*(1-Inputs!$C$16) -> 40558.43486 | E21: =D21*(1-Inputs!$C$16) -> 40355.64269 | F21: =E21*(1-Inputs!$C$16) -> 40153.86448 | G21: =F21*(1-Inputs!$C$16) -> 39953.09515 | H21: =G21*(1-Inputs!$C$16) -> 39753.32968 | I21: =H21*(1-Inputs!$C$16) -> 39554.56303 | J21: =I21*(1-Inputs!$C$16) -> 39356.79021 | K21: =J21*(1-Inputs!$C$16) -> 39160.00626 | L21: =K21*(1-Inputs!$C$16) -> 38964.20623 | M21: =L21*(1-Inputs!$C$16) -> 38769.3852 | N21: =M21*(1-Inputs!$C$16) -> 38575.53827 | O21: =N21*(1-Inputs!$C$16) -> 38382.66058 | P21: =O21*(1-Inputs!$C$16) -> 38190.74728 | Q21: =P21*(1-Inputs!$C$16) -> 37999.79354 | R21: =Q21*(1-Inputs!$C$16) -> 37809.79458 | S21: =R21*(1-Inputs!$C$16) -> 37620.7456 | T21: =S21*(1-Inputs!$C$16) -> 37432.64188 | U21: =T21*(1-Inputs!$C$16) -> 37245.47867 | V21: =U21*(1-Inputs!$C$16) -> 37059.25127 | W21: =V21*(1-Inputs!$C$16) -> 36873.95502 | X21: =W21*(1-Inputs!$C$16) -> 36689.58524 | Y21: =X21*(1-Inputs!$C$16) -> 36506.13731 | Z21: =Y21*(1-Inputs!$C$16) -> 36323.60663 | AA21: =Z21*(1-Inputs!$C$16) -> 36141.98859 | AB21: =AA21*(1-Inputs!$C$16) -> 35961.27865 | AC21: =AVERAGE(C21:OFFSET(C21,0,Inputs!$C$4)) -> 38313.64488 | AD21: =AC21/Inputs!$C$5 -> 95.78411221 | AF21: =AVERAGE($AC$12:$AC$23)/Inputs!$C$5 -> 103.8892242
B22: Nov | C22: =N4 -> 42741.72266 | D22: =C22*(1-Inputs!$C$16) -> 42528.01404 | E22: =D22*(1-Inputs!$C$16) -> 42315.37397 | F22: =E22*(1-Inputs!$C$16) -> 42103.7971 | G22: =F22*(1-Inputs!$C$16) -> 41893.27812 | H22: =G22*(1-Inputs!$C$16) -> 41683.81173 | I22: =H22*(1-Inputs!$C$16) -> 41475.39267 | J22: =I22*(1-Inputs!$C$16) -> 41268.0157 | K22: =J22*(1-Inputs!$C$16) -> 41061.67563 | L22: =K22*(1-Inputs!$C$16) -> 40856.36725 | M22: =L22*(1-Inputs!$C$16) -> 40652.08541 | N22: =M22*(1-Inputs!$C$16) -> 40448.82498 | O22: =N22*(1-Inputs!$C$16) -> 40246.58086 | P22: =O22*(1-Inputs!$C$16) -> 40045.34796 | Q22: =P22*(1-Inputs!$C$16) -> 39845.12122 | R22: =Q22*(1-Inputs!$C$16) -> 39645.89561 | S22: =R22*(1-Inputs!$C$16) -> 39447.66613 | T22: =S22*(1-Inputs!$C$16) -> 39250.4278 | U22: =T22*(1-Inputs!$C$16) -> 39054.17566 | V22: =U22*(1-Inputs!$C$16) -> 38858.90478 | W22: =V22*(1-Inputs!$C$16) -> 38664.61026 | X22: =W22*(1-Inputs!$C$16) -> 38471.28721 | Y22: =X22*(1-Inputs!$C$16) -> 38278.93077 | Z22: =Y22*(1-Inputs!$C$16) -> 38087.53612 | AA22: =Z22*(1-Inputs!$C$16) -> 37897.09844 | AB22: =AA22*(1-Inputs!$C$16) -> 37707.61295 | AC22: =AVERAGE(C22:OFFSET(C22,0,Inputs!$C$4)) -> 40174.21365 | AD22: =AC22/Inputs!$C$5 -> 100.4355341 | AF22: =AVERAGE($AC$12:$AC$23)/Inputs!$C$5 -> 103.8892242
B23: Dec | C23: =O4 -> 35872.5 | D23: =C23*(1-Inputs!$C$16) -> 35693.1375 | E23: =D23*(1-Inputs!$C$16) -> 35514.67181 | F23: =E23*(1-Inputs!$C$16) -> 35337.09845 | G23: =F23*(1-Inputs!$C$16) -> 35160.41296 | H23: =G23*(1-Inputs!$C$16) -> 34984.6109 | I23: =H23*(1-Inputs!$C$16) -> 34809.68784 | J23: =I23*(1-Inputs!$C$16) -> 34635.6394 | K23: =J23*(1-Inputs!$C$16) -> 34462.46121 | L23: =K23*(1-Inputs!$C$16) -> 34290.1489 | M23: =L23*(1-Inputs!$C$16) -> 34118.69816 | N23: =M23*(1-Inputs!$C$16) -> 33948.10466 | O23: =N23*(1-Inputs!$C$16) -> 33778.36414 | P23: =O23*(1-Inputs!$C$16) -> 33609.47232 | Q23: =P23*(1-Inputs!$C$16) -> 33441.42496 | R23: =Q23*(1-Inputs!$C$16) -> 33274.21783 | S23: =R23*(1-Inputs!$C$16) -> 33107.84674 | T23: =S23*(1-Inputs!$C$16) -> 32942.30751 | U23: =T23*(1-Inputs!$C$16) -> 32777.59597 | V23: =U23*(1-Inputs!$C$16) -> 32613.70799 | W23: =V23*(1-Inputs!$C$16) -> 32450.63945 | X23: =W23*(1-Inputs!$C$16) -> 32288.38626 | Y23: =X23*(1-Inputs!$C$16) -> 32126.94433 | Z23: =Y23*(1-Inputs!$C$16) -> 31966.3096 | AA23: =Z23*(1-Inputs!$C$16) -> 31806.47806 | AB23: =AA23*(1-Inputs!$C$16) -> 31647.44567 | AC23: =AVERAGE(C23:OFFSET(C23,0,Inputs!$C$4)) -> 33717.62741 | AD23: =AC23/Inputs!$C$5 -> 84.29406852 | AF23: =AVERAGE($AC$12:$AC$23)/Inputs!$C$5 -> 103.8892242
B24: Year | C24: =P4 -> 530537.8555 | D24: =C24*(1-Inputs!$C$16) -> 527885.1662 | E24: =D24*(1-Inputs!$C$16) -> 525245.7404 | F24: =E24*(1-Inputs!$C$16) -> 522619.5117 | G24: =F24*(1-Inputs!$C$16) -> 520006.4141 | H24: =G24*(1-Inputs!$C$16) -> 517406.382 | I24: =H24*(1-Inputs!$C$16) -> 514819.3501 | J24: =I24*(1-Inputs!$C$16) -> 512245.2534 | K24: =J24*(1-Inputs!$C$16) -> 509684.0271 | L24: =K24*(1-Inputs!$C$16) -> 507135.607 | M24: =L24*(1-Inputs!$C$16) -> 504599.9289 | N24: =M24*(1-Inputs!$C$16) -> 502076.9293 | O24: =N24*(1-Inputs!$C$16) -> 499566.5446 | P24: =O24*(1-Inputs!$C$16) -> 497068.7119 | Q24: =P24*(1-Inputs!$C$16) -> 494583.3684 | R24: =Q24*(1-Inputs!$C$16) -> 492110.4515 | S24: =R24*(1-Inputs!$C$16) -> 489649.8993 | T24: =S24*(1-Inputs!$C$16) -> 487201.6498 | U24: =T24*(1-Inputs!$C$16) -> 484765.6415 | V24: =U24*(1-Inputs!$C$16) -> 482341.8133 | W24: =V24*(1-Inputs!$C$16) -> 479930.1042 | X24: =W24*(1-Inputs!$C$16) -> 477530.4537 | Y24: =X24*(1-Inputs!$C$16) -> 475142.8014 | Z24: =Y24*(1-Inputs!$C$16) -> 472767.0874 | AA24: =Z24*(1-Inputs!$C$16) -> 470403.252 | AB24: =AA24*(1-Inputs!$C$16) -> 468051.2357 | AC24: =AVERAGE(C24:OFFSET(C24,0,Inputs!$C$4)) -> 498668.2762 | AD24: =AC24/Inputs!$C$5 -> 1246.67069
C25: Average Generation | D25: =AVERAGE(D12:D23) -> 43990.43052 | E25: =AVERAGE(E12:E23) -> 43770.47836 | F25: 43551.62597 | G25: 43333.86784 | H25: 43117.1985 | I25: 42901.61251 | J25: 42687.10445 | K25: 42473.66893 | L25: 42261.30058 | M25: 42049.99408 | N25: 41839.74411 | O25: 41630.54539 | P25: 41422.39266 | Q25: 41215.2807 | R25: 41009.20429 | S25: 40804.15827 | T25: 40600.13748 | U25: 40397.13679 | V25: 40195.15111 | W25: 39994.17535 | X25: 39794.20448 | Y25: 39595.23345 | Z25: 39397.25729 | AA25: 39200.271 | AB25: 39004.26965
C26: Electric rate escalation | D26: =Inputs!F5 -> 0.11 | E26: =D26*(1+Inputs!$F$6) -> 0.111694 | F26: =E26*(1+Inputs!$F$6) -> 0.1134140876 | G26: =F26*(1+Inputs!$F$6) -> 0.1151606645 | H26: =G26*(1+Inputs!$F$6) -> 0.1169341388 | I26: =H26*(1+Inputs!$F$6) -> 0.1187349245 | J26: =I26*(1+Inputs!$F$6) -> 0.1205634424 | K26: =J26*(1+Inputs!$F$6) -> 0.1224201194 | L26: =K26*(1+Inputs!$F$6) -> 0.1243053892 | M26: =L26*(1+Inputs!$F$6) -> 0.1262196922 | N26: =M26*(1+Inputs!$F$6) -> 0.1281634755 | O26: =N26*(1+Inputs!$F$6) -> 0.130137193 | P26: =O26*(1+Inputs!$F$6) -> 0.1321413058 | Q26: =P26*(1+Inputs!$F$6) -> 0.1341762819 | R26: =Q26*(1+Inputs!$F$6) -> 0.1362425966 | S26: =R26*(1+Inputs!$F$6) -> 0.1383407326 | T26: =S26*(1+Inputs!$F$6) -> 0.1404711799 | U26: =T26*(1+Inputs!$F$6) -> 0.142634436 | V26: =U26*(1+Inputs!$F$6) -> 0.1448310064 | W26: =V26*(1+Inputs!$F$6) -> 0.1470614039 | X26: =W26*(1+Inputs!$F$6) -> 0.1493261495 | Y26: =X26*(1+Inputs!$F$6) -> 0.1516257722 | Z26: =Y26*(1+Inputs!$F$6) -> 0.1539608091 | AA26: =Z26*(1+Inputs!$F$6) -> 0.1563318055 | AB26: =AA26*(1+Inputs!$F$6) -> 0.1587393153
C28: Annual Cost of Solar Electricity (No Credit) [$] | D28: =('Capacity-Based Model'!$C$14*Data!D24)/'Capacity-Based Model'!$C$3 -> 237.5483248 | E28: =('Capacity-Based Model'!$C$14*Data!E24)/'Capacity-Based Model'!$C$3 -> 236.3605832 | F28: =('Capacity-Based Model'!$C$14*Data!F24)/'Capacity-Based Model'!$C$3 -> 235.1787802 | G28: =('Capacity-Based Model'!$C$14*Data!G24)/'Capacity-Based Model'!$C$3 -> 234.0028863 | H28: =('Capacity-Based Model'!$C$14*Data!H24)/'Capacity-Based Model'!$C$3 -> 232.8328719 | I28: =('Capacity-Based Model'!$C$14*Data!I24)/'Capacity-Based Model'!$C$3 -> 231.6687076 | J28: =('Capacity-Based Model'!$C$14*Data!J24)/'Capacity-Based Model'!$C$3 -> 230.510364 | K28: =('Capacity-Based Model'!$C$14*Data!K24)/'Capacity-Based Model'!$C$3 -> 229.3578122 | L28: =('Capacity-Based Model'!$C$14*Data!L24)/'Capacity-Based Model'!$C$3 -> 228.2110231 | M28: =('Capacity-Based Model'!$C$14*Data!M24)/'Capacity-Based Model'!$C$3 -> 227.069968 | N28: =('Capacity-Based Model'!$C$14*Data!N24)/'Capacity-Based Model'!$C$3 -> 225.9346182 | O28: =('Capacity-Based Model'!$C$14*Data!O24)/'Capacity-Based Model'!$C$3 -> 224.8049451 | P28: =('Capacity-Based Model'!$C$14*Data!P24)/'Capacity-Based Model'!$C$3 -> 223.6809204 | Q28: =('Capacity-Based Model'!$C$14*Data!Q24)/'Capacity-Based Model'!$C$3 -> 222.5625158 | R28: =('Capacity-Based Model'!$C$14*Data!R24)/'Capacity-Based Model'!$C$3 -> 221.4497032 | S28: =('Capacity-Based Model'!$C$14*Data!S24)/'Capacity-Based Model'!$C$3 -> 220.3424547 | T28: =('Capacity-Based Model'!$C$14*Data!T24)/'Capacity-Based Model'!$C$3 -> 219.2407424 | U28: =('Capacity-Based Model'!$C$14*Data!U24)/'Capacity-Based Model'!$C$3 -> 218.1445387 | V28: =('Capacity-Based Model'!$C$14*Data!V24)/'Capacity-Based Model'!$C$3 -> 217.053816 | W28: =('Capacity-Based Model'!$C$14*Data!W24)/'Capacity-Based Model'!$C$3 -> 215.9685469 | X28: =('Capacity-Based Model'!$C$14*Data!X24)/'Capacity-Based Model'!$C$3 -> 214.8887042 | Y28: =('Capacity-Based Model'!$C$14*Data!Y24)/'Capacity-Based Model'!$C$3 -> 213.8142607 | Z28: =('Capacity-Based Model'!$C$14*Data!Z24)/'Capacity-Based Model'!$C$3 -> 212.7451893 | AA28: =('Capacity-Based Model'!$C$14*Data!AA24)/'Capacity-Based Model'!$C$3 -> 211.6814634 | AB28: =('Capacity-Based Model'!$C$14*Data!AB24)/'Capacity-Based Model'!$C$3 -> 210.6230561 | AD28: =NPV(Inputs!$F$11,Data!D28:OFFSET(Data!D28,0,Inputs!$C$4-1)) -> 2078.151028 | AE28: =NPV(0,Data!D28:OFFSET(Data!D28,0,Inputs!$C$4-1)) -> 5595.676796
C29: Cost of Solar Electricity (No Credit) [$/kWh] | D29: ='Capacity-Based Model'!$C$14 -> 0.18 | E29: ='Capacity-Based Model'!$C$14 -> 0.18 | F29: ='Capacity-Based Model'!$C$14 -> 0.18 | G29: ='Capacity-Based Model'!$C$14 -> 0.18 | H29: ='Capacity-Based Model'!$C$14 -> 0.18 | I29: ='Capacity-Based Model'!$C$14 -> 0.18 | J29: ='Capacity-Based Model'!$C$14 -> 0.18 | K29: ='Capacity-Based Model'!$C$14 -> 0.18 | L29: ='Capacity-Based Model'!$C$14 -> 0.18 | M29: ='Capacity-Based Model'!$C$14 -> 0.18 | N29: ='Capacity-Based Model'!$C$14 -> 0.18 | O29: ='Capacity-Based Model'!$C$14 -> 0.18 | P29: ='Capacity-Based Model'!$C$14 -> 0.18 | Q29: ='Capacity-Based Model'!$C$14 -> 0.18 | R29: ='Capacity-Based Model'!$C$14 -> 0.18 | S29: ='Capacity-Based Model'!$C$14 -> 0.18 | T29: ='Capacity-Based Model'!$C$14 -> 0.18 | U29: ='Capacity-Based Model'!$C$14 -> 0.18 | V29: ='Capacity-Based Model'!$C$14 -> 0.18 | W29: ='Capacity-Based Model'!$C$14 -> 0.18 | X29: ='Capacity-Based Model'!$C$14 -> 0.18 | Y29: ='Capacity-Based Model'!$C$14 -> 0.18 | Z29: ='Capacity-Based Model'!$C$14 -> 0.18 | AA29: ='Capacity-Based Model'!$C$14 -> 0.18 | AB29: ='Capacity-Based Model'!$C$14 -> 0.18
C30: Annual Net Cost @ Bill Credit Rate [$] | D30: =(('Capacity-Based Model'!$C$14-Inputs!$F$9)*Data!D24)/'Capacity-Based Model'!$C$3 -> 171.562679 | E30: =(('Capacity-Based Model'!$C$14-Inputs!$F$9)*Data!E24)/'Capacity-Based Model'!$C$3 -> 170.7048656 | F30: =(('Capacity-Based Model'!$C$14-Inputs!$F$9)*Data!F24)/'Capacity-Based Model'!$C$3 -> 169.8513413 | G30: =(('Capacity-Based Model'!$C$14-Inputs!$F$9)*Data!G24)/'Capacity-Based Model'!$C$3 -> 169.0020846 | H30: =(('Capacity-Based Model'!$C$14-Inputs!$F$9)*Data!H24)/'Capacity-Based Model'!$C$3 -> 168.1570742 | I30: =(('Capacity-Based Model'!$C$14-Inputs!$F$9)*Data!I24)/'Capacity-Based Model'!$C$3 -> 167.3162888 | J30: =(('Capacity-Based Model'!$C$14-Inputs!$F$9)*Data!J24)/'Capacity-Based Model'!$C$3 -> 166.4797073 | K30: =(('Capacity-Based Model'!$C$14-Inputs!$F$9)*Data!K24)/'Capacity-Based Model'!$C$3 -> 165.6473088 | L30: =(('Capacity-Based Model'!$C$14-Inputs!$F$9)*Data!L24)/'Capacity-Based Model'!$C$3 -> 164.8190723 | M30: =(('Capacity-Based Model'!$C$14-Inputs!$F$9)*Data!M24)/'Capacity-Based Model'!$C$3 -> 163.9949769 | N30: =(('Capacity-Based Model'!$C$14-Inputs!$F$9)*Data!N24)/'Capacity-Based Model'!$C$3 -> 163.175002 | O30: =(('Capacity-Based Model'!$C$14-Inputs!$F$9)*Data!O24)/'Capacity-Based Model'!$C$3 -> 162.359127 | P30: =(('Capacity-Based Model'!$C$14-Inputs!$F$9)*Data!P24)/'Capacity-Based Model'!$C$3 -> 161.5473314 | Q30: =(('Capacity-Based Model'!$C$14-Inputs!$F$9)*Data!Q24)/'Capacity-Based Model'!$C$3 -> 160.7395947 | R30: =(('Capacity-Based Model'!$C$14-Inputs!$F$9)*Data!R24)/'Capacity-Based Model'!$C$3 -> 159.9358967 | S30: =(('Capacity-Based Model'!$C$14-Inputs!$F$9)*Data!S24)/'Capacity-Based Model'!$C$3 -> 159.1362173 | T30: =(('Capacity-Based Model'!$C$14-Inputs!$F$9)*Data!T24)/'Capacity-Based Model'!$C$3 -> 158.3405362 | U30: =(('Capacity-Based Model'!$C$14-Inputs!$F$9)*Data!U24)/'Capacity-Based Model'!$C$3 -> 157.5488335 | V30: =(('Capacity-Based Model'!$C$14-Inputs!$F$9)*Data!V24)/'Capacity-Based Model'!$C$3 -> 156.7610893 | W30: =(('Capacity-Based Model'!$C$14-Inputs!$F$9)*Data!W24)/'Capacity-Based Model'!$C$3 -> 155.9772839 | X30: =(('Capacity-Based Model'!$C$14-Inputs!$F$9)*Data!X24)/'Capacity-Based Model'!$C$3 -> 155.1973975 | Y30: =(('Capacity-Based Model'!$C$14-Inputs!$F$9)*Data!Y24)/'Capacity-Based Model'!$C$3 -> 154.4214105 | Z30: =(('Capacity-Based Model'!$C$14-Inputs!$F$9)*Data!Z24)/'Capacity-Based Model'!$C$3 -> 153.6493034 | AA30: =(('Capacity-Based Model'!$C$14-Inputs!$F$9)*Data!AA24)/'Capacity-Based Model'!$C$3 -> 152.8810569 | AB30: =(('Capacity-Based Model'!$C$14-Inputs!$F$9)*Data!AB24)/'Capacity-Based Model'!$C$3 -> 152.1166516 | AD30: =NPV(Inputs!$F$11,Data!D30:OFFSET(Data!D30,0,Inputs!$C$4-1)) -> 1500.886853 | AE30: =NPV(0,Data!D30:OFFSET(Data!D30,0,Inputs!$C$4-1)) -> 4041.322131
C31: Cost of Solar Electricity @ Bill Credit Rate [$/kWh] | D31: =IF(Inputs!$F$9=0,0,'Capacity-Based Model'!$E$31) -> 0.13 | E31: =IF(Inputs!$F$9=0,0,'Capacity-Based Model'!$E$31) -> 0.13 | F31: =IF(Inputs!$F$9=0,0,'Capacity-Based Model'!$E$31) -> 0.13 | G31: =IF(Inputs!$F$9=0,0,'Capacity-Based Model'!$E$31) -> 0.13 | H31: =IF(Inputs!$F$9=0,0,'Capacity-Based Model'!$E$31) -> 0.13 | I31: =IF(Inputs!$F$9=0,0,'Capacity-Based Model'!$E$31) -> 0.13 | J31: =IF(Inputs!$F$9=0,0,'Capacity-Based Model'!$E$31) -> 0.13 | K31: =IF(Inputs!$F$9=0,0,'Capacity-Based Model'!$E$31) -> 0.13 | L31: =IF(Inputs!$F$9=0,0,'Capacity-Based Model'!$E$31) -> 0.13 | M31: =IF(Inputs!$F$9=0,0,'Capacity-Based Model'!$E$31) -> 0.13 | N31: =IF(Inputs!$F$9=0,0,'Capacity-Based Model'!$E$31) -> 0.13 | O31: =IF(Inputs!$F$9=0,0,'Capacity-Based Model'!$E$31) -> 0.13 | P31: =IF(Inputs!$F$9=0,0,'Capacity-Based Model'!$E$31) -> 0.13 | Q31: =IF(Inputs!$F$9=0,0,'Capacity-Based Model'!$E$31) -> 0.13 | R31: =IF(Inputs!$F$9=0,0,'Capacity-Based Model'!$E$31) -> 0.13 | S31: =IF(Inputs!$F$9=0,0,'Capacity-Based Model'!$E$31) -> 0.13 | T31: =IF(Inputs!$F$9=0,0,'Capacity-Based Model'!$E$31) -> 0.13 | U31: =IF(Inputs!$F$9=0,0,'Capacity-Based Model'!$E$31) -> 0.13 | V31: =IF(Inputs!$F$9=0,0,'Capacity-Based Model'!$E$31) -> 0.13 | W31: =IF(Inputs!$F$9=0,0,'Capacity-Based Model'!$E$31) -> 0.13 | X31: =IF(Inputs!$F$9=0,0,'Capacity-Based Model'!$E$31) -> 0.13 | Y31: =IF(Inputs!$F$9=0,0,'Capacity-Based Model'!$E$31) -> 0.13 | Z31: =IF(Inputs!$F$9=0,0,'Capacity-Based Model'!$E$31) -> 0.13 | AA31: =IF(Inputs!$F$9=0,0,'Capacity-Based Model'!$E$31) -> 0.13 | AB31: =IF(Inputs!$F$9=0,0,'Capacity-Based Model'!$E$31) -> 0.13
C32: Annual Cost of Electricity (Escalated Electric Rate) [$] | D32: =(D24*D26)/'Capacity-Based Model'!$C$3 -> 145.1684207 | E32: =(E24*E26)/'Capacity-Based Model'!$C$3 -> 146.6669943 | F32: =(F24*F26)/'Capacity-Based Model'!$C$3 -> 148.1810377 | G32: =(G24*G26)/'Capacity-Based Model'!$C$3 -> 149.7107105 | H32: =(H24*H26)/'Capacity-Based Model'!$C$3 -> 151.2561742 | I32: =(I24*I26)/'Capacity-Based Model'!$C$3 -> 152.8175917 | J32: =(J24*J26)/'Capacity-Based Model'!$C$3 -> 154.3951277 | K32: =(K24*K26)/'Capacity-Based Model'!$C$3 -> 155.9889486 | L32: =(L24*L26)/'Capacity-Based Model'!$C$3 -> 157.5992225 | M32: =(M24*M26)/'Capacity-Based Model'!$C$3 -> 159.2261193 | N32: =(N24*N26)/'Capacity-Based Model'!$C$3 -> 160.8698105 | O32: =(O24*O26)/'Capacity-Based Model'!$C$3 -> 162.5304696 | P32: =(P24*P26)/'Capacity-Based Model'!$C$3 -> 164.2082716 | Q32: =(Q24*Q26)/'Capacity-Based Model'!$C$3 -> 165.9033936 | R32: =(R24*R26)/'Capacity-Based Model'!$C$3 -> 167.6160143 | S32: =(S24*S26)/'Capacity-Based Model'!$C$3 -> 169.3463144 | T32: =(T24*T26)/'Capacity-Based Model'!$C$3 -> 171.0944764 | U32: =(U24*U26)/'Capacity-Based Model'!$C$3 -> 172.8606847 | V32: =(V24*V26)/'Capacity-Based Model'!$C$3 -> 174.6451256 | W32: =(W24*W26)/'Capacity-Based Model'!$C$3 -> 176.4479872 | X32: =(X24*X26)/'Capacity-Based Model'!$C$3 -> 178.2694598 | Y32: =(Y24*Y26)/'Capacity-Based Model'!$C$3 -> 180.1097354 | Z32: =(Z24*Z26)/'Capacity-Based Model'!$C$3 -> 181.9690082 | AA32: =(AA24*AA26)/'Capacity-Based Model'!$C$3 -> 183.8474743 | AB32: =(AB24*AB26)/'Capacity-Based Model'!$C$3 -> 185.7453318 | AD32: =NPV(Inputs!$F$11,Data!D32:OFFSET(Data!D32,0,Inputs!$C$4-1)) -> 1425.648684 | AE32: =NPV(0,Data!D32:OFFSET(Data!D32,0,Inputs!$C$4-1)) -> 4116.473905

Sheet Setup (hidden)
B2: Web Service Connections
B3: Service | C3: API Key | D3: URL
B4: PVWatts | C4: PktEUryc4eK2Rlmm8gdAjZZ3uPRYDy6wUijakofZ | D4: http://developer.nrel.gov/api/pvwatts/v4.json?
B6: Incentives
B7: Investment Tax Credit
C8: Incentive [%] | D8: Maximum [$]
B9: Federal | C9: 0.3 | D9: 0
B10: Implied Value of Depreciation | C10: 0.26 | D10: 0

Sheet LCOE
B2: Year | D2: 1 | E2: 2 | F2: 3 | G2: 4 | H2: 5 | I2: 6 | J2: 7 | K2: 8 | L2: 9 | M2: 10 | N2: 11 | O2: 12 | P2: 13 | Q2: 14 | R2: 15 | S2: 16 | T2: 17 | U2: 18 | V2: 19 | W2: 20 | X2: 21 | Y2: 22 | Z2: 23 | AA2: 24 | AB2: 25
B3: Generation [kWh] | C3: =Data!C24 -> 530537.8555 | D3: =Data!D24 -> 527885.1662 | E3: =Data!E24 -> 525245.7404 | F3: =Data!F24 -> 522619.5117 | G3: =Data!G24 -> 520006.4141 | H3: =Data!H24 -> 517406.382 | I3: =Data!I24 -> 514819.3501 | J3: =Data!J24 -> 512245.2534 | K3: =Data!K24 -> 509684.0271 | L3: =Data!L24 -> 507135.607 | M3: =Data!M24 -> 504599.9289 | N3: =Data!N24 -> 502076.9293 | O3: =Data!O24 -> 499566.5446 | P3: =Data!P24 -> 497068.7119 | Q3: =Data!Q24 -> 494583.3684 | R3: =Data!R24 -> 492110.4515 | S3: =Data!S24 -> 489649.8993 | T3: =Data!T24 -> 487201.6498 | U3: =Data!U24 -> 484765.6415 | V3: =Data!V24 -> 482341.8133 | W3: =Data!W24 -> 479930.1042 | X3: =Data!X24 -> 477530.4537 | Y3: =Data!Y24 -> 475142.8014 | Z3: =Data!Z24 -> 472767.0874 | AA3: =Data!AA24 -> 470403.252 | AB3: =Data!AB24 -> 468051.2357
B5: Capital Cost [$] | C5: =(Inputs!$C$3*Inputs!$C$7*1.5)-(Inputs!$C$3*Inputs!$C$7*(Setup!$C$9+Setup!$C$10)) -> 1504000
B6: O&M Costs [$] | D6: =Inputs!$C$3*Inputs!$C$8 -> 6000 | E6: =D6*(1+Inputs!$F$6) -> 6092.4 | F6: =E6*(1+Inputs!$F$6) -> 6186.22296 | G6: =F6*(1+Inputs!$F$6) -> 6281.490794 | H6: =G6*(1+Inputs!$F$6) -> 6378.225752 | I6: =H6*(1+Inputs!$F$6) -> 6476.450428 | J6: =I6*(1+Inputs!$F$6) -> 6576.187765 | K6: =J6*(1+Inputs!$F$6) -> 6677.461057 | L6: =K6*(1+Inputs!$F$6) -> 6780.293957 | M6: =L6*(1+Inputs!$F$6) -> 6884.710484 | N6: =M6*(1+Inputs!$F$6) -> 6990.735025 | O6: =N6*(1+Inputs!$F$6) -> 7098.392345 | P6: =O6*(1+Inputs!$F$6) -> 7207.707587 | Q6: =P6*(1+Inputs!$F$6) -> 7318.706284 | R6: =Q6*(1+Inputs!$F$6) -> 7431.41436 | S6: =R6*(1+Inputs!$F$6) -> 7545.858141 | T6: =S6*(1+Inputs!$F$6) -> 7662.064357 | U6: =T6*(1+Inputs!$F$6) -> 7780.060148 | V6: =U6*(1+Inputs!$F$6) -> 7899.873074 | W6: =V6*(1+Inputs!$F$6) -> 8021.53112 | X6: =W6*(1+Inputs!$F$6) -> 8145.062699 | Y6: =X6*(1+Inputs!$F$6) -> 8270.496664 | Z6: =Y6*(1+Inputs!$F$6) -> 8397.862313 | AA6: =Z6*(1+Inputs!$F$6) -> 8527.189393 | AB6: =AA6*(1+Inputs!$F$6) -> 8658.508109
B8: LCOE [$/kWh] | C8: =(C5+NPV(Inputs!F11,LCOE!D6:OFFSET(D6,0,Inputs!$C$4)))/(C3+NPV(Inputs!F11,LCOE!D3:OFFSET(D3,0,Inputs!$C$4))) -> 0.3040272632
C10: Capital Cost: | D10: <--- Please see the cell comment for a discussion of the capital cost calculation
C11: O&M Costs: | D11: System Size [kW] * O&M Costs [$/kW-yr]
C12: LCOE: | D12: (Capital Cost [$] + NPV(Discount Rate [%], O&M Costs [$], System Lifetime [yrs])) / (First Year Generation [kWh] + NPV(Discount Rate [%], Annual Production, System Lifetime [yrs]))
